[Event "Titled Tuesday Blitz January 17 Late 2023"]
[White "Stanisz, Patryk"]
[Black "Bouget, Alexandre"]
[WhiteFideId "1123106"]
[BlackFideId "681318"]
[WhiteElo "2161"]
[BlackElo "2267"]
[Result "0-1"]
[Round "06"]
[TimeControl "180+2"]
[Date "2023.01.17"]
[WhiteClock "0:00:01"]
[BlackClock "0:00:11"]

1. e4 {[%clk 0:03:00]}  e6 {[%clk 0:02:51]} 2. d4 {[%clk 0:02:58]}  d5 {[%clk 0:02:50]} 3. Nd2 {[%clk 0:02:58]}  Nf6 {[%clk 0:02:48]} 4. e5 {[%clk 0:02:58]}  Nfd7 {[%clk 0:02:48]} 5. Bd3 {[%clk 0:02:59]}  c5 {[%clk 0:02:48]} 6. c3 {[%clk 0:03:00]}  Nc6 {[%clk 0:02:48]} 7. Ne2 {[%clk 0:02:59]}  cxd4 {[%clk 0:02:48]} 8. cxd4 {[%clk 0:02:59]}  f6 {[%clk 0:02:49]} 9. exf6 {[%clk 0:02:58]}  Nxf6 {[%clk 0:02:49]} 10. O-O {[%clk 0:02:53]}  Bd6 {[%clk 0:02:50]} 11. Nf3 {[%clk 0:02:53]}  Qc7 {[%clk 0:02:50]} 12. Bg5 {[%clk 0:02:28]}  O-O {[%clk 0:02:47]} 13. Bh4 {[%clk 0:02:26]}  Nh5 {[%clk 0:02:46]} 14. Nc3 {[%clk 0:02:02]}  a6 {[%clk 0:02:45]} 15. Ng5 {[%clk 0:01:26]}  g6 {[%clk 0:02:40]} 16. Bg3 {[%clk 0:01:10]}  Nxg3 {[%clk 0:02:23]} 17. fxg3 {[%clk 0:01:09]}  Rxf1+ {[%clk 0:02:16]} 18. Qxf1 {[%clk 0:00:48]}  Nxd4 {[%clk 0:02:16]} 19. Rd1 {[%clk 0:00:43]}  Qe7 {[%clk 0:02:11]} 20. h4 {[%clk 0:00:41]}  Bd7 {[%clk 0:02:08]} 21. Qe1 {[%clk 0:00:26]}  Rf8 {[%clk 0:02:03]} 22. Kh2 {[%clk 0:00:25]}  b5 {[%clk 0:01:48]} 23. Bxg6 {[%clk 0:00:25]}  hxg6 {[%clk 0:00:59]} 24. Rxd4 {[%clk 0:00:25]}  b4 {[%clk 0:00:59]} 25. Ne2 {[%clk 0:00:23]}  Bc5 {[%clk 0:00:48]} 26. Rd1 {[%clk 0:00:23]}  Kg7 {[%clk 0:00:49]} 27. Nf4 {[%clk 0:00:20]}  e5 {[%clk 0:00:41]} 28. Nxd5 {[%clk 0:00:19]}  Qxg5 {[%clk 0:00:41]} 29. Rc1 {[%clk 0:00:09]}  Bd4 {[%clk 0:00:20]} 30. Rc7 {[%clk 0:00:08]}  Qd8 {[%clk 0:00:19]} 31. Qxb4 {[%clk 0:00:06]}  Rf7 {[%clk 0:00:18]} 32. Qb7 {[%clk 0:00:05]}  Be6 {[%clk 0:00:17]} 33. Rxf7+ {[%clk 0:00:01]}  Bxf7 {[%clk 0:00:18]} 34. Nc7 {[%clk 0:00:01]}  Qe7 {[%clk 0:00:15]} 35. Qc6 {[%clk 0:00:01]}  e4 {[%clk 0:00:12]} 36. Nxa6 {[%clk 0:00:01]}  e3 {[%clk 0:00:11]} 0-1


[Site "https://www.chess.com"]

[Event "Titled Tuesday Blitz January 17 Late 2023"]
[White "Weisz, Bryan"]
[Black "Sabar, Ethmane Daouda"]
[WhiteFideId "30934133"]
[BlackFideId "19600097"]
[WhiteElo "1973"]
[BlackElo "2040"]
[Result "0-1"]
[Round "06"]
[TimeControl "180+2"]
[Date "2023.01.17"]
[WhiteClock "0:00:05"]
[BlackClock "0:00:01"]

1. e4 {[%clk 0:03:00]}  e5 {[%clk 0:03:00]} 2. Nf3 {[%clk 0:02:59]}  Nc6 {[%clk 0:03:00]} 3. Bc4 {[%clk 0:02:59]}  Nf6 {[%clk 0:03:00]} 4. Ng5 {[%clk 0:02:57]}  d5 {[%clk 0:02:59]} 5. exd5 {[%clk 0:02:56]}  b5 {[%clk 0:03:00]} 6. Bf1 {[%clk 0:02:51]}  Nxd5 {[%clk 0:02:57]} 7. Bxb5 {[%clk 0:02:41]}  Bd7 {[%clk 0:02:51]} 8. Ne4 {[%clk 0:02:02]}  f5 {[%clk 0:02:45]} 9. Nec3 {[%clk 0:01:58]}  Nf4 {[%clk 0:02:42]} 10. Qf3 {[%clk 0:01:53]}  Nd4 {[%clk 0:02:29]} 11. Bxd7+ {[%clk 0:01:46]}  Kxd7 {[%clk 0:02:30]} 12. Qd1 {[%clk 0:01:24]}  Nxg2+ {[%clk 0:02:08]} 13. Kf1 {[%clk 0:01:19]}  Nf4 {[%clk 0:02:09]} 14. d3 {[%clk 0:00:57]}  Qh4 {[%clk 0:02:08]} 15. Bxf4 {[%clk 0:00:56]}  Qh3+ {[%clk 0:02:02]} 16. Ke1 {[%clk 0:00:46]}  Nf3+ {[%clk 0:01:56]} 17. Ke2 {[%clk 0:00:39]}  exf4 {[%clk 0:01:49]} 18. d4 {[%clk 0:00:39]}  Re8+ {[%clk 0:01:46]} 19. Kd3 {[%clk 0:00:39]}  Bb4 {[%clk 0:00:45]} 20. Kc4 {[%clk 0:00:35]}  Rb8 {[%clk 0:00:41]} 21. Nd2 {[%clk 0:00:18]}  Ng5 {[%clk 0:00:38]} 22. Nd5 {[%clk 0:00:15]}  Bd6 {[%clk 0:00:34]} 23. Rg1 {[%clk 0:00:13]}  h6 {[%clk 0:00:32]} 24. Qe2 {[%clk 0:00:10]}  Rhe8 {[%clk 0:00:29]} 25. Qd3 {[%clk 0:00:10]}  f3 {[%clk 0:00:19]} 26. Rae1 {[%clk 0:00:08]}  Rxe1 {[%clk 0:00:12]} 27. Rxe1 {[%clk 0:00:09]}  Qg4 {[%clk 0:00:08]} 28. Re3 {[%clk 0:00:06]}  Ne4 {[%clk 0:00:07]} 29. Nxe4 {[%clk 0:00:05]}  fxe4 {[%clk 0:00:07]} 30. Qxe4 {[%clk 0:00:06]}  Qxe4 {[%clk 0:00:05]} 31. Rxe4 {[%clk 0:00:07]}  Rxb2 {[%clk 0:00:05]} 32. Re3 {[%clk 0:00:05]}  Rxc2+ {[%clk 0:00:04]} 33. Rc3 {[%clk 0:00:03]}  Rxf2 {[%clk 0:00:05]} 34. Ra3 {[%clk 0:00:04]}  Rxh2 {[%clk 0:00:04]} 35. Rxa7 {[%clk 0:00:04]}  f2 {[%clk 0:00:04]} 36. Nb6+ {[%clk 0:00:03]}  Kc6 {[%clk 0:00:03]} 37. d5+ {[%clk 0:00:03]}  Kxb6 {[%clk 0:00:03]} 38. Ra8 {[%clk 0:00:04]}  f1=Q+ {[%clk 0:00:02]} 39. Kb3 {[%clk 0:00:05]}  Qb1+ {[%clk 0:00:02]} 40. Ka4 {[%clk 0:00:05]}  Rxa2# {[%clk 0:00:01]} 0-1


[Site "https://www.chess.com"]

[Event "Titled Tuesday Blitz January 17 Late 2023"]
[White "Tang, Andrew"]
[Black "Abdrlauf, Elham"]
[WhiteFideId "2059630"]
[BlackFideId "1533533"]
[WhiteElo "2523"]
[BlackElo "2518"]
[Result "1/2-1/2"]
[Round "07"]
[TimeControl "180+2"]
[Date "2023.01.17"]
[WhiteClock "0:00:07"]
[BlackClock "0:00:17"]

1. d4 {[%clk 0:03:00]}  Nf6 {[%clk 0:02:59]} 2. Nf3 {[%clk 0:02:58]}  d5 {[%clk 0:02:59]} 3. Bf4 {[%clk 0:02:58]}  c5 {[%clk 0:02:59]} 4. e3 {[%clk 0:02:58]}  Nc6 {[%clk 0:03:00]} 5. Nbd2 {[%clk 0:02:58]}  Qb6 {[%clk 0:02:59]} 6. dxc5 {[%clk 0:02:58]}  Qxb2 {[%clk 0:03:00]} 7. Rb1 {[%clk 0:02:59]}  Qc3 {[%clk 0:03:00]} 8. Bb5 {[%clk 0:02:59]}  g6 {[%clk 0:02:58]} 9. e4 {[%clk 0:02:45]}  Bg7 {[%clk 0:02:48]} 10. Be5 {[%clk 0:02:35]}  Qxc5 {[%clk 0:02:44]} 11. Bd4 {[%clk 0:02:34]}  Qa3 {[%clk 0:02:35]} 12. exd5 {[%clk 0:02:29]}  a6 {[%clk 0:02:26]} 13. Nc4 {[%clk 0:02:00]}  Qxa2 {[%clk 0:02:25]} 14. Nb6 {[%clk 0:01:10]}  axb5 {[%clk 0:01:59]} 15. Ra1 {[%clk 0:01:00]}  Nxd4 {[%clk 0:01:42]} 16. Rxa2 {[%clk 0:01:00]}  Nxf3+ {[%clk 0:01:02]} 17. gxf3 {[%clk 0:00:57]}  Rxa2 {[%clk 0:01:03]} 18. Qb1 {[%clk 0:00:49]}  Ra6 {[%clk 0:00:28]} 19. Qxb5+ {[%clk 0:00:42]}  Kd8 {[%clk 0:00:28]} 20. O-O {[%clk 0:00:38]}  Ne8 {[%clk 0:00:09]} 21. Re1 {[%clk 0:00:22]}  Bf6 {[%clk 0:00:08]} 22. c4 {[%clk 0:00:20]}  Nd6 {[%clk 0:00:08]} 23. Qb4 {[%clk 0:00:19]}  Nf5 {[%clk 0:00:06]} 24. c5 {[%clk 0:00:18]}  Nd4 {[%clk 0:00:07]} 25. Kg2 {[%clk 0:00:18]}  Nc2 {[%clk 0:00:07]} 26. Qe4 {[%clk 0:00:15]}  Bf5 {[%clk 0:00:05]} 27. Qf4 {[%clk 0:00:12]}  Nxe1+ {[%clk 0:00:03]} 28. Kf1 {[%clk 0:00:11]}  Rxb6 {[%clk 0:00:02]} 29. cxb6 {[%clk 0:00:10]}  e6 {[%clk 0:00:01]} 30. Qc7+ {[%clk 0:00:09]}  Ke8 {[%clk 0:00:01]} 31. d6 {[%clk 0:00:09]}  Kf8 {[%clk 0:00:01]} 32. Kxe1 {[%clk 0:00:07]}  Kg7 {[%clk 0:00:02]} 33. Qxb7 {[%clk 0:00:07]}  e5 {[%clk 0:00:02]} 34. Qc7 {[%clk 0:00:07]}  Bc8 {[%clk 0:00:03]} 35. d7 {[%clk 0:00:06]}  Ba6 {[%clk 0:00:01]} 36. Qa7 {[%clk 0:00:06]}  Bc4 {[%clk 0:00:01]} 37. b7 {[%clk 0:00:05]}  Be6 {[%clk 0:00:01]} 38. b8=Q {[%clk 0:00:05]}  Rxb8 {[%clk 0:00:02]} 39. Qxb8 {[%clk 0:00:05]}  Bxd7 {[%clk 0:00:03]} 40. Qd6 {[%clk 0:00:06]}  Be6 {[%clk 0:00:03]} 41. Ke2 {[%clk 0:00:06]}  h5 {[%clk 0:00:03]} 42. Ke3 {[%clk 0:00:05]}  Bg5+ {[%clk 0:00:03]} 43. Ke2 {[%clk 0:00:06]}  Bf6 {[%clk 0:00:04]} 44. Kf1 {[%clk 0:00:05]}  Bh3+ {[%clk 0:00:04]} 45. Ke1 {[%clk 0:00:05]}  Be6 {[%clk 0:00:05]} 46. Qc5 {[%clk 0:00:05]}  h4 {[%clk 0:00:05]} 47. Qb4 {[%clk 0:00:04]}  Bf5 {[%clk 0:00:04]} 48. f4 {[%clk 0:00:04]}  exf4 {[%clk 0:00:04]} 49. Qxf4 {[%clk 0:00:04]}  Be6 {[%clk 0:00:05]} 50. f3 {[%clk 0:00:05]}  Bf5 {[%clk 0:00:05]} 51. Qd6 {[%clk 0:00:05]}  Be6 {[%clk 0:00:06]} 52. Kf2 {[%clk 0:00:05]}  Bf5 {[%clk 0:00:06]} 53. Ke3 {[%clk 0:00:05]}  Be6 {[%clk 0:00:07]} 54. Qc5 {[%clk 0:00:05]}  Bf5 {[%clk 0:00:07]} 55. Qb4 {[%clk 0:00:05]}  h3 {[%clk 0:00:07]} 56. Kf2 {[%clk 0:00:04]}  Be6 {[%clk 0:00:08]} 57. Kg3 {[%clk 0:00:05]}  Bf5 {[%clk 0:00:09]} 58. f4 {[%clk 0:00:05]}  Be6 {[%clk 0:00:09]} 59. Qc5 {[%clk 0:00:05]}  Bf5 {[%clk 0:00:10]} 60. Qc6 {[%clk 0:00:05]}  Be6 {[%clk 0:00:11]} 61. Qf3 {[%clk 0:00:05]}  Bf5 {[%clk 0:00:12]} 62. Qe2 {[%clk 0:00:05]}  Be6 {[%clk 0:00:13]} 63. Qf3 {[%clk 0:00:06]}  Bf5 {[%clk 0:00:14]} 64. Qd1 {[%clk 0:00:05]}  Be6 {[%clk 0:00:15]} 65. Qe1 {[%clk 0:00:06]}  Bf5 {[%clk 0:00:15]} 66. Qe2 {[%clk 0:00:06]}  Be6 {[%clk 0:00:16]} 67. Qf1 {[%clk 0:00:06]}  Bf5 {[%clk 0:00:17]} 68. Qd1 {[%clk 0:00:06]}  Be6 {[%clk 0:00:17]} 69. Qf3 {[%clk 0:00:07]} 1/2-1/2


[Site "https://www.chess.com"]

[Event "Titled Tuesday Blitz January 17 Late 2023"]
[White "Sadhwani, Raunak"]
[Black "Esipenko, Andrey"]
[WhiteFideId "35093487"]
[BlackFideId "24175439"]
[WhiteElo "2627"]
[BlackElo "2679"]
[Result "1-0"]
[Round "07"]
[TimeControl "180+2"]
[Date "2023.01.17"]
[WhiteClock "0:00:03"]
[BlackClock "0:00:01"]

1. e4 {[%clk 0:03:00]}  e5 {[%clk 0:02:59]} 2. Nf3 {[%clk 0:03:01]}  Nc6 {[%clk 0:02:59]} 3. Bc4 {[%clk 0:03:01]}  Nf6 {[%clk 0:02:58]} 4. d3 {[%clk 0:03:02]}  Be7 {[%clk 0:02:58]} 5. O-O {[%clk 0:03:00]}  O-O {[%clk 0:02:58]} 6. Re1 {[%clk 0:02:59]}  d6 {[%clk 0:02:55]} 7. a4 {[%clk 0:03:00]}  a5 {[%clk 0:02:53]} 8. c3 {[%clk 0:02:58]}  h6 {[%clk 0:02:47]} 9. Nbd2 {[%clk 0:02:57]}  Be6 {[%clk 0:02:47]} 10. Bxe6 {[%clk 0:02:57]}  fxe6 {[%clk 0:02:48]} 11. Qb3 {[%clk 0:02:58]}  Qd7 {[%clk 0:02:46]} 12. Nf1 {[%clk 0:02:55]}  b6 {[%clk 0:02:44]} 13. Bd2 {[%clk 0:02:53]}  d5 {[%clk 0:02:14]} 14. Ng3 {[%clk 0:02:47]}  Bd6 {[%clk 0:02:12]} 15. Qb5 {[%clk 0:02:45]}  Rae8 {[%clk 0:02:10]} 16. d4 {[%clk 0:02:20]}  Nxe4 {[%clk 0:01:04]} 17. Nxe4 {[%clk 0:02:21]}  dxe4 {[%clk 0:01:05]} 18. Rxe4 {[%clk 0:02:22]}  exd4 {[%clk 0:01:06]} 19. Nxd4 {[%clk 0:02:11]}  Qf7 {[%clk 0:01:06]} 20. Nf3 {[%clk 0:02:02]}  Ne7 {[%clk 0:00:39]} 21. Rae1 {[%clk 0:02:00]}  Nd5 {[%clk 0:00:40]} 22. Qe2 {[%clk 0:01:57]}  e5 {[%clk 0:00:33]} 23. Qc4 {[%clk 0:01:47]}  Nf6 {[%clk 0:00:25]} 24. Qxf7+ {[%clk 0:01:48]}  Rxf7 {[%clk 0:00:26]} 25. R4e2 {[%clk 0:01:42]}  Rfe7 {[%clk 0:00:27]} 26. h3 {[%clk 0:01:34]}  Kf7 {[%clk 0:00:27]} 27. Be3 {[%clk 0:01:32]}  Nd7 {[%clk 0:00:19]} 28. Nd2 {[%clk 0:01:32]}  Bc5 {[%clk 0:00:18]} 29. Ne4 {[%clk 0:01:13]}  Bxe3 {[%clk 0:00:17]} 30. Rxe3 {[%clk 0:01:14]}  Nf6 {[%clk 0:00:15]} 31. Nd2 {[%clk 0:01:14]}  Nd7 {[%clk 0:00:14]} 32. b4 {[%clk 0:01:12]}  axb4 {[%clk 0:00:13]} 33. cxb4 {[%clk 0:01:13]}  Ra8 {[%clk 0:00:14]} 34. Ra1 {[%clk 0:01:12]}  Nf6 {[%clk 0:00:14]} 35. a5 {[%clk 0:01:07]}  Nd5 {[%clk 0:00:14]} 36. Rb3 {[%clk 0:01:07]}  Ke6 {[%clk 0:00:11]} 37. a6 {[%clk 0:01:07]}  c6 {[%clk 0:00:09]} 38. b5 {[%clk 0:00:38]}  cxb5 {[%clk 0:00:09]} 39. Rxb5 {[%clk 0:00:30]}  Rea7 {[%clk 0:00:10]} 40. Nc4 {[%clk 0:00:20]}  Rxa6 {[%clk 0:00:10]} 41. Rd1 {[%clk 0:00:20]}  Nf6 {[%clk 0:00:03]} 42. Rxe5+ {[%clk 0:00:17]}  Kf7 {[%clk 0:00:02]} 43. Kh2 {[%clk 0:00:15]}  Kf8 {[%clk 0:00:01]} 44. Rb1 {[%clk 0:00:13]}  Rc8 {[%clk 0:00:02]} 45. Nxb6 {[%clk 0:00:11]}  Rb8 {[%clk 0:00:02]} 46. Reb5 {[%clk 0:00:11]}  Kf7 {[%clk 0:00:03]} 47. f3 {[%clk 0:00:11]}  Kg6 {[%clk 0:00:02]} 48. h4 {[%clk 0:00:09]}  h5 {[%clk 0:00:02]} 49. Kg3 {[%clk 0:00:08]}  Ra2 {[%clk 0:00:02]} 50. Nc4 {[%clk 0:00:05]}  Rxb5 {[%clk 0:00:02]} 51. Rxb5 {[%clk 0:00:06]}  Nd7 {[%clk 0:00:01]} 52. Rg5+ {[%clk 0:00:05]}  Kh6 {[%clk 0:00:01]} 53. Rd5 {[%clk 0:00:06]}  Nf6 {[%clk 0:00:01]} 54. Rb5 {[%clk 0:00:06]}  Rc2 {[%clk 0:00:01]} 55. Ne5 {[%clk 0:00:06]}  Re2 {[%clk 0:00:01]} 56. Nf7+ {[%clk 0:00:05]}  Kg6 {[%clk 0:00:01]} 57. Ng5 {[%clk 0:00:06]}  Rc2 {[%clk 0:00:01]} 58. Nh3 {[%clk 0:00:06]}  Ra2 {[%clk 0:00:01]} 59. Nf4+ {[%clk 0:00:07]}  Kh6 {[%clk 0:00:02]} 60. Rb8 {[%clk 0:00:08]}  Kh7 {[%clk 0:00:02]} 61. Rb6 {[%clk 0:00:08]}  Rd2 {[%clk 0:00:01]} 62. Rb5 {[%clk 0:00:07]}  Kh6 {[%clk 0:00:01]} 63. Kh3 {[%clk 0:00:08]}  Rd4 {[%clk 0:00:01]} 64. Ne6 {[%clk 0:00:04]}  Rd1 {[%clk 0:00:02]} 65. Rb8 {[%clk 0:00:04]}  Rd6 {[%clk 0:00:01]} 66. Rh8+ {[%clk 0:00:03]}  Kg6 {[%clk 0:00:01]} 67. Nf4+ {[%clk 0:00:04]}  Kf7 {[%clk 0:00:02]} 68. Nxh5 {[%clk 0:00:04]}  Ng8 {[%clk 0:00:01]} 69. Rh7 {[%clk 0:00:03]}  Rg6 {[%clk 0:00:01]} 70. g4 {[%clk 0:00:03]}  Kf8 {[%clk 0:00:02]} 71. Kg3 {[%clk 0:00:02]}  Kf7 {[%clk 0:00:02]} 72. Nf4 {[%clk 0:00:03]}  Rb6 {[%clk 0:00:01]} 73. Nh5 {[%clk 0:00:03]}  Rg6 {[%clk 0:00:01]} 74. f4 {[%clk 0:00:03]} 1-0


[Site "https://www.chess.com"]

[Event "Titled Tuesday Blitz January 17 Late 2023"]
[White "Duda, Jan-Krzysztof"]
[Black "Jones, Gawain C B"]
[WhiteFideId "1170546"]
[BlackFideId "409561"]
[WhiteElo "2724"]
[BlackElo "2618"]
[Result "1-0"]
[Round "07"]
[TimeControl "180+2"]
[Date "2023.01.17"]
[WhiteClock "0:00:59"]
[BlackClock "0:00:01"]

1. d4 {[%clk 0:03:00]}  Nf6 {[%clk 0:02:59]} 2. Nf3 {[%clk 0:03:00]}  g6 {[%clk 0:03:00]} 3. c4 {[%clk 0:03:00]}  Bg7 {[%clk 0:03:00]} 4. Nc3 {[%clk 0:03:00]}  O-O {[%clk 0:03:01]} 5. e4 {[%clk 0:03:00]}  d6 {[%clk 0:03:01]} 6. Be2 {[%clk 0:03:01]}  e5 {[%clk 0:03:01]} 7. O-O {[%clk 0:03:00]}  Nbd7 {[%clk 0:03:01]} 8. Be3 {[%clk 0:02:59]}  Qe7 {[%clk 0:03:01]} 9. Qc2 {[%clk 0:02:51]}  c6 {[%clk 0:03:01]} 10. d5 {[%clk 0:02:48]}  c5 {[%clk 0:03:02]} 11. Nd2 {[%clk 0:02:44]}  Kh8 {[%clk 0:03:00]} 12. a3 {[%clk 0:02:33]}  Ng8 {[%clk 0:03:00]} 13. f3 {[%clk 0:02:33]}  f5 {[%clk 0:02:55]} 14. b4 {[%clk 0:02:33]}  b6 {[%clk 0:02:54]} 15. Rab1 {[%clk 0:02:31]}  Ndf6 {[%clk 0:02:41]} 16. Kh1 {[%clk 0:02:27]}  h5 {[%clk 0:02:36]} 17. a4 {[%clk 0:02:24]}  a5 {[%clk 0:02:32]} 18. bxa5 {[%clk 0:02:22]}  bxa5 {[%clk 0:02:32]} 19. Rb6 {[%clk 0:02:19]}  Nd7 {[%clk 0:02:23]} 20. Rc6 {[%clk 0:02:14]}  Nb8 {[%clk 0:02:19]} 21. Rxc8 {[%clk 0:02:14]}  Rxc8 {[%clk 0:02:19]} 22. exf5 {[%clk 0:02:14]}  gxf5 {[%clk 0:01:39]} 23. Qxf5 {[%clk 0:02:15]}  Qe8 {[%clk 0:01:39]} 24. Bd3 {[%clk 0:02:11]}  Nf6 {[%clk 0:01:37]} 25. Nde4 {[%clk 0:02:10]}  Nbd7 {[%clk 0:01:07]} 26. Nxd6 {[%clk 0:02:09]}  Qf8 {[%clk 0:00:59]} 27. Nxc8 {[%clk 0:02:08]}  Rxc8 {[%clk 0:00:59]} 28. Ne4 {[%clk 0:02:03]}  Nxe4 {[%clk 0:00:53]} 29. Qxh5+ {[%clk 0:02:00]}  Kg8 {[%clk 0:00:53]} 30. Bxe4 {[%clk 0:02:01]}  Nf6 {[%clk 0:00:52]} 31. Qf5 {[%clk 0:02:00]}  Rb8 {[%clk 0:00:38]} 32. Qe6+ {[%clk 0:01:51]}  Kh8 {[%clk 0:00:36]} 33. Qh3+ {[%clk 0:01:42]}  Kg8 {[%clk 0:00:36]} 34. Bf5 {[%clk 0:01:43]}  Qe7 {[%clk 0:00:31]} 35. Be6+ {[%clk 0:01:40]}  Kf8 {[%clk 0:00:32]} 36. Qf5 {[%clk 0:01:40]}  Rb4 {[%clk 0:00:13]} 37. Bg5 {[%clk 0:01:35]}  Rxa4 {[%clk 0:00:10]} 38. h4 {[%clk 0:01:14]}  Qd8 {[%clk 0:00:08]} 39. d6 {[%clk 0:01:09]}  Rb4 {[%clk 0:00:04]} 40. Rd1 {[%clk 0:00:59]}  a4 {[%clk 0:00:04]} 41. Qg6 {[%clk 0:00:59]}  Rb7 {[%clk 0:00:02]} 42. d7 {[%clk 0:00:59]}  Rxd7 {[%clk 0:00:01]} 1-0


[Site "https://www.chess.com"]

[Event "Titled Tuesday Blitz January 17 Late 2023"]
[White "Bluebaum, Matthias"]
[Black "Zhigalko, Sergei"]
[WhiteFideId "24651516"]
[BlackFideId "13502956"]
[WhiteElo "2669"]
[BlackElo "2572"]
[Result "0-1"]
[Round "07"]
[TimeControl "180+2"]
[Date "2023.01.17"]
[WhiteClock "0:00:03"]
[BlackClock "0:00:02"]

1. d4 {[%clk 0:03:00]}  Nf6 {[%clk 0:02:59]} 2. c4 {[%clk 0:03:01]}  e6 {[%clk 0:02:59]} 3. Nc3 {[%clk 0:03:02]}  Bb4 {[%clk 0:02:59]} 4. e3 {[%clk 0:03:02]}  O-O {[%clk 0:02:58]} 5. Bd2 {[%clk 0:03:03]}  d6 {[%clk 0:02:53]} 6. Bd3 {[%clk 0:03:03]}  e5 {[%clk 0:02:51]} 7. Nge2 {[%clk 0:03:03]}  Re8 {[%clk 0:02:50]} 8. O-O {[%clk 0:03:01]}  c6 {[%clk 0:02:48]} 9. a3 {[%clk 0:03:01]}  Ba5 {[%clk 0:02:48]} 10. b4 {[%clk 0:03:01]}  Bc7 {[%clk 0:02:49]} 11. Ng3 {[%clk 0:02:53]}  d5 {[%clk 0:02:32]} 12. cxd5 {[%clk 0:02:46]}  cxd5 {[%clk 0:02:33]} 13. Nb5 {[%clk 0:02:36]}  e4 {[%clk 0:02:22]} 14. Nxc7 {[%clk 0:02:36]}  Qxc7 {[%clk 0:02:23]} 15. Be2 {[%clk 0:02:36]}  Be6 {[%clk 0:02:17]} 16. Rc1 {[%clk 0:02:36]}  Qd8 {[%clk 0:02:15]} 17. b5 {[%clk 0:02:32]}  Nbd7 {[%clk 0:02:14]} 18. Bb4 {[%clk 0:02:31]}  Nb6 {[%clk 0:02:13]} 19. f3 {[%clk 0:01:54]}  exf3 {[%clk 0:02:09]} 20. Bxf3 {[%clk 0:01:55]}  Nc4 {[%clk 0:02:07]} 21. Qd3 {[%clk 0:01:55]}  Rc8 {[%clk 0:02:05]} 22. e4 {[%clk 0:01:46]}  dxe4 {[%clk 0:01:57]} 23. Nxe4 {[%clk 0:01:47]}  Bf5 {[%clk 0:01:10]} 24. Rxc4 {[%clk 0:01:28]}  Nxe4 {[%clk 0:00:43]} 25. Rxc8 {[%clk 0:01:09]}  Qxc8 {[%clk 0:00:42]} 26. Qb3 {[%clk 0:01:08]}  Nf6 {[%clk 0:00:26]} 27. h3 {[%clk 0:00:49]}  Be4 {[%clk 0:00:24]} 28. Bxe4 {[%clk 0:00:48]}  Rxe4 {[%clk 0:00:24]} 29. d5 {[%clk 0:00:39]}  h6 {[%clk 0:00:22]} 30. d6 {[%clk 0:00:38]}  Qd7 {[%clk 0:00:08]} 31. Rc1 {[%clk 0:00:38]}  Qxb5 {[%clk 0:00:07]} 32. Qf3 {[%clk 0:00:30]}  Re5 {[%clk 0:00:05]} 33. Rc7 {[%clk 0:00:24]}  a5 {[%clk 0:00:02]} 34. Rxb7 {[%clk 0:00:24]}  Qd5 {[%clk 0:00:02]} 35. Bc3 {[%clk 0:00:09]}  Qc5+ {[%clk 0:00:02]} 36. Kh2 {[%clk 0:00:09]}  Re3 {[%clk 0:00:03]} 37. d7 {[%clk 0:00:05]}  Nxd7 {[%clk 0:00:02]} 38. Qg4 {[%clk 0:00:05]}  Qxc3 {[%clk 0:00:02]} 39. Rxd7 {[%clk 0:00:02]}  Qe5+ {[%clk 0:00:02]} 40. g3 {[%clk 0:00:02]}  Re2+ {[%clk 0:00:03]} 41. Kg1 {[%clk 0:00:03]}  Qe3+ {[%clk 0:00:02]} 42. Kh1 {[%clk 0:00:03]}  Qc1+ {[%clk 0:00:01]} 43. Rd1 {[%clk 0:00:03]}  Qxd1# {[%clk 0:00:02]} 0-1


[Site "https://www.chess.com"]

[Event "Titled Tuesday Blitz January 17 Late 2023"]
[White "Chigaev, Maksim"]
[Black "Galperin, Platon"]
[WhiteFideId "4108116"]
[BlackFideId "14165414"]
[WhiteElo "2628"]
[BlackElo "2528"]
[Result "1-0"]
[Round "07"]
[TimeControl "180+2"]
[Date "2023.01.17"]
[WhiteClock "0:02:26"]
[BlackClock "0:01:55"]

1. e4 {[%clk 0:03:00]}  c5 {[%clk 0:02:59]} 2. Nf3 {[%clk 0:03:00]}  d6 {[%clk 0:03:00]} 3. d4 {[%clk 0:03:00]}  Nf6 {[%clk 0:03:00]} 4. dxc5 {[%clk 0:02:55]}  Nxe4 {[%clk 0:02:56]} 5. cxd6 {[%clk 0:02:56]}  Nc6 {[%clk 0:02:56]} 6. dxe7 {[%clk 0:02:55]}  Qxd1+ {[%clk 0:02:44]} 7. Kxd1 {[%clk 0:02:56]}  Bxe7 {[%clk 0:02:25]} 8. Be3 {[%clk 0:02:55]}  Bf6 {[%clk 0:02:23]} 9. Kc1 {[%clk 0:02:54]}  Bf5 {[%clk 0:02:20]} 10. a3 {[%clk 0:02:50]}  Rc8 {[%clk 0:02:18]} 11. Bd3 {[%clk 0:02:33]}  Na5 {[%clk 0:02:16]} 12. Nbd2 {[%clk 0:02:29]}  Nb3+ {[%clk 0:01:55]} 13. Nxb3 {[%clk 0:02:26]} 1-0


[Site "https://www.chess.com"]

[Event "Titled Tuesday Blitz January 17 Late 2023"]
[White "Zakhartsov, Vladimir"]
[Black "Urazayev, Arystanbek"]
[WhiteFideId "4145097"]
[BlackFideId "13709810"]
[WhiteElo "2552"]
[BlackElo "2460"]
[Result "0-1"]
[Round "07"]
[TimeControl "180+2"]
[Date "2023.01.17"]
[WhiteClock "0:00:01"]
[BlackClock "0:00:32"]

1. e4 {[%clk 0:02:54]}  c5 {[%clk 0:03:00]} 2. Nf3 {[%clk 0:02:53]}  e6 {[%clk 0:03:00]} 3. g3 {[%clk 0:02:52]}  d5 {[%clk 0:03:00]} 4. exd5 {[%clk 0:02:52]}  exd5 {[%clk 0:03:01]} 5. d4 {[%clk 0:02:52]}  cxd4 {[%clk 0:03:02]} 6. Nxd4 {[%clk 0:02:50]}  Nc6 {[%clk 0:03:02]} 7. Bg2 {[%clk 0:02:50]}  Bc5 {[%clk 0:03:02]} 8. Be3 {[%clk 0:02:49]}  Qb6 {[%clk 0:02:52]} 9. Nb3 {[%clk 0:01:58]}  Bxe3 {[%clk 0:02:52]} 10. Qe2 {[%clk 0:01:58]}  Nf6 {[%clk 0:02:45]} 11. Qxe3+ {[%clk 0:01:55]}  Qxe3+ {[%clk 0:02:45]} 12. fxe3 {[%clk 0:01:56]}  O-O {[%clk 0:02:46]} 13. Nc3 {[%clk 0:01:55]}  Re8 {[%clk 0:02:44]} 14. O-O {[%clk 0:01:51]}  Nb4 {[%clk 0:02:38]} 15. Nd4 {[%clk 0:01:45]}  Rxe3 {[%clk 0:02:21]} 16. Rae1 {[%clk 0:01:22]}  Rxe1 {[%clk 0:02:19]} 17. Rxe1 {[%clk 0:01:23]}  Bd7 {[%clk 0:02:20]} 18. Rd1 {[%clk 0:01:07]}  Rd8 {[%clk 0:01:56]} 19. a3 {[%clk 0:01:02]}  Nc6 {[%clk 0:01:56]} 20. h3 {[%clk 0:00:54]}  Kf8 {[%clk 0:01:47]} 21. g4 {[%clk 0:00:52]}  h6 {[%clk 0:01:44]} 22. Nb3 {[%clk 0:00:38]}  Be6 {[%clk 0:01:39]} 23. Ne2 {[%clk 0:00:38]}  Ne5 {[%clk 0:01:32]} 24. Nbd4 {[%clk 0:00:34]}  Nc4 {[%clk 0:01:30]} 25. b3 {[%clk 0:00:35]}  Ne3 {[%clk 0:01:30]} 26. Rd3 {[%clk 0:00:35]}  Nxg2 {[%clk 0:01:30]} 27. Kxg2 {[%clk 0:00:36]}  Bd7 {[%clk 0:01:31]} 28. Nf4 {[%clk 0:00:36]}  g5 {[%clk 0:01:27]} 29. Nfe2 {[%clk 0:00:32]}  h5 {[%clk 0:01:20]} 30. gxh5 {[%clk 0:00:32]}  Nxh5 {[%clk 0:01:20]} 31. Nf3 {[%clk 0:00:33]}  f6 {[%clk 0:01:14]} 32. Rc3 {[%clk 0:00:22]}  Rc8 {[%clk 0:01:07]} 33. Nfd4 {[%clk 0:00:20]}  Nf4+ {[%clk 0:01:02]} 34. Kg3 {[%clk 0:00:16]}  Rxc3+ {[%clk 0:01:01]} 35. Nxc3 {[%clk 0:00:16]}  Bxh3 {[%clk 0:01:02]} 36. Nxd5 {[%clk 0:00:15]}  Nxd5 {[%clk 0:01:02]} 37. Kxh3 {[%clk 0:00:15]}  Ke7 {[%clk 0:00:55]} 38. c4 {[%clk 0:00:15]}  Ne3 {[%clk 0:00:50]} 39. c5 {[%clk 0:00:15]}  f5 {[%clk 0:00:49]} 40. c6 {[%clk 0:00:13]}  bxc6 {[%clk 0:00:43]} 41. Nxc6+ {[%clk 0:00:13]}  Ke6 {[%clk 0:00:39]} 42. Nxa7 {[%clk 0:00:14]}  f4 {[%clk 0:00:39]} 43. Nc6 {[%clk 0:00:07]}  g4+ {[%clk 0:00:37]} 44. Kh4 {[%clk 0:00:06]}  Kd5 {[%clk 0:00:35]} 45. Ne7+ {[%clk 0:00:03]}  Ke4 {[%clk 0:00:36]} 46. a4 {[%clk 0:00:01]}  g3 {[%clk 0:00:33]} 47. Kh3 {[%clk 0:00:01]}  Kf3 {[%clk 0:00:32]} 48. Nf5 {[%clk 0:00:01]}  Nxf5 {[%clk 0:00:31]} 49. a5 {[%clk 0:00:01]}  g2 {[%clk 0:00:32]} 0-1


[Site "https://www.chess.com"]